bitfinex-derivatives/quotes_SOLF0:USTF0_20250325
["timestamp","ask_amount","ask_price","bid_price","bid_amount"]
[1742928216087,407.83105028,145.3,145.09,227.52]
[1742928216390,409.02985148,145.3,145.14,6.889]
[1742928216590,356.0,145.29,145.14,6.889]
[1742928216793,0.050332,145.23,145.2,0.05260447]
[1742928216994,25.98,145.22,145.14,6.889]
[1742928217195,25.98,145.22,145.2,0.049043]
[1742928217494,26.03185648,145.22,145.2,0.04628825]
[1742928218095,6.8861,145.21,145.2,0.04628825]
[1742928218293,26.03185648,145.22,145.13,25.98]
[1742928218495,25.98,145.22,145.13,25.98]
[1742928218996,6.887,145.19,145.13,25.98]
[1742928219493,0.04795141,145.17,145.15,0.04899493]
[1742928223396,25.98,145.22,145.15,0.04899493]
[1742928224097,6.8866,145.2,145.15,0.04899493]
[1742928224296,25.98,145.22,145.15,0.04899493]
[1742928224497,0.04979391,145.19,145.15,0.04899493]
[1742928224697,6.93659391,145.19,145.15,0.04899493]
[1742928225099,0.04979391,145.19,145.15,0.04899493]
[1742928225488,25.98,145.22,145.15,0.04899493]
[1742928225999,6.8876,145.17,145.15,0.04899493]
[1742928226199,376.69,145.27,145.15,0.04899493]
[1742928226395,356.0,145.26,145.13,25.98]
[1742928226694,0.04687161,145.21,145.18,0.05092766]
[1742928226998,6.8867,145.19,145.18,0.05092766]
[1742928229299,6.8867,145.19,145.18,2.766e-05]
[1742928229602,25.78,145.2,145.09,227.52]
[1742928229903,25.78,145.2,145.08,25.8]
[1742928230202,46.47,145.2,145.06,25.8]
[1742928230595,46.47,145.2,145.12,0.05104411]
[1742928230797,46.47,145.2,145.12,4.411e-05]
[1742928231301,46.54105028,145.18,144.99,1.19931763]
[1742928231492,376.69,145.17,144.98,25.78]
[1742928231692,25.78,145.16,145.02,6.8944]
[1742928232000,25.78,145.16,144.98,25.78]
[1742928232601,6.8923,145.07,145.06,0.04522876]
[1742928232802,376.69,145.17,144.98,25.78]
[1742928232803,25.8,145.09,144.98,25.78]
[1742928233103,25.78,145.09,145.03,6.8939]
[1742928233298,0.04444002,145.05,145.03,6.8939]
[1742928233904,25.78,145.09,145.03,25.78]
[1742928234102,6.8922,145.08,145.03,25.78]
[1742928234500,6.8907,145.11,145.03,25.78]
[1742928234698,25.78,145.12,145.03,25.78]
[1742928234897,25.78,145.12,145.06,6.8925]
[1742928235094,0.04860375,145.09,145.06,6.9393425]
[1742928236101,0.04860375,145.09,145.06,0.0468425]
[1742928238205,0.04860375,145.09,145.07,6.8921]
[1742928240908,0.04860375,145.09,145.06,0.0468425]
[1742928241412,6.8923,145.07,145.06,0.0468425]
[1742928246812,6.9,145.07,144.97,9.54310151]
[1742928247017,25.76,145.06,144.97,9.54310151]
[1742928247214,6.8963,144.99,144.95,44.86666125]
[1742928247416,13.7841,145.08,144.95,44.86666125]
[1742928247417,25.78,145.02,144.95,44.86666125]
[1742928248018,0.04663064,145.0,144.97,0.04787187]
[1742928249120,6.8966,144.98,144.97,0.04787187]
[1742928249421,32.6566,144.98,144.97,0.04787187]
[1742928250320,25.76,144.98,144.9,253.16]
[1742928250916,25.76,144.98,144.9,227.4]
[1742928251219,6.8979,144.96,144.91,6.8999]
[1742928251520,0.05053606,144.95,144.93,0.04672657]
[1742928251722,0.05053606,144.95,144.93,6.94542657]
[1742928252426,0.05053606,144.95,144.94,6.8985]
[1742928252618,0.00077346,144.95,144.94,6.8985]
[1742928254823,25.74,145.04,145.0,6.8956]
[1742928255024,25.72,145.07,144.99,25.72]
[1742928255426,6.8941,145.04,145.0,6.8954]
[1742928255925,25.72,145.07,144.99,25.72]
[1742928256227,6.94157479,145.03,145.01,0.05158955]
[1742928256926,6.8947,145.02,145.01,0.05158955]
[1742928260224,25.72697479,145.03,145.01,0.05158955]
[1742928260622,6.8947,145.02,145.01,0.05158955]
[1742928265041,25.72697479,145.03,144.89,13.8009]
[1742928265341,25.68,145.03,144.88,1.20031043]
[1742928265533,25.68,145.03,144.91,25.62]
[1742928265733,6.8974,144.97,144.91,25.62]
[1742928265937,6.8974,144.97,144.93,6.8986]
[1742928266244,0.05029889,144.96,144.94,0.05254825]
[1742928266440,0.05029889,144.96,144.94,6.95094825]
[1742928266840,0.05029889,144.96,144.94,32.55094825]
[1742928267444,6.94799889,144.96,144.94,0.05254825]
[1742928267646,0.05029889,144.96,144.94,0.05254825]
[1742928269137,0.05029889,144.96,144.95,6.8981]
[1742928269643,25.6,145.05,144.94,0.05254825]
[1742928269838,25.6,145.05,144.92,41.77433521]
[1742928270142,25.62,145.07,144.92,41.77433521]
[1742928270349,25.62,145.07,144.94,16.17433521]
[1742928270739,0.05084863,145.02,145.01,6.895]
[1742928270944,25.62,145.07,145.0,25.62]
[1742928271144,0.04576024,145.03,145.0,25.66829853]
[1742928271347,0.04576024,145.03,145.02,6.8945]
[1742928276149,381.72,145.14,145.07,6.8922]
[1742928276347,25.72,145.14,145.07,6.8922]
[1742928276543,13.7767,145.16,145.07,6.8922]
[1742928276751,25.72,145.15,145.07,6.8922]
[1742928277348,0.05029394,145.12,145.1,0.04400079]
[1742928278449,6.8904,145.11,145.1,0.04400079]
[1742928280550,25.64,145.11,145.0,25.64]
[1742928281048,6.8942,145.04,145.0,32.5355]
[1742928281248,25.64,145.11,145.0,25.64]
[1742928281550,25.64,145.11,145.02,6.8947]
[1742928281744,0.04623534,145.07,145.04,0.05023608]
[1742928282947,6.8933,145.05,145.04,0.05023608]
[1742928287252,0.04623534,145.07,145.04,0.05023608]
[1742928287950,6.8931,145.06,145.04,0.05023608]
[1742928288753,6.93883534,145.07,145.04,0.05023608]
[1742928288949,0.04623534,145.07,145.04,0.05023608]
[1742928289151,0.04623534,145.07,145.05,25.52]
[1742928289353,0.04623534,145.07,145.06,6.8928]
[1742928289851,0.04623534,145.07,145.04,0.05023608]
[1742928290149,6.8933,145.05,145.04,0.05023608]
[1742928293753,25.52,145.05,144.96,32.4175]
[1742928294550,6.8967,144.98,144.96,32.4175]
[1742928294750,6.8967,144.98,144.96,0.05055455]
[1742928294951,6.94900078,144.98,144.96,0.05055455]
[1742928295351,0.05230078,144.98,144.96,6.94785455]
[1742928296354,6.94900078,144.98,144.96,6.94785455]
[1742928297355,6.94900078,144.98,144.96,0.05055455]
[1742928299255,6.8971,144.97,144.96,0.05055455]
[1742928302056,0.05230078,144.98,144.96,0.05055455]
[1742928303455,0.05230078,144.98,144.92,1.38007176]
[1742928303456,25.46,144.97,144.92,1.38007176]
[1742928303652,25.46,144.97,144.82,13.8082]
[1742928303850,16.17068774,144.96,144.81,227.52]
[1742928304054,29.96608774,144.96,144.8,25.48]
[1742928304358,6.9012,144.89,144.8,25.48]
[1742928304558,25.5,144.91,144.85,6.9027]
[1742928304947,6.94546363,144.89,144.87,0.0442128]
[1742928305457,0.04426363,144.89,144.87,0.0442128]
[1742928306256,0.04426363,144.89,144.78,37.96906125]
[1742928306457,25.5,144.91,144.79,25.52]
[1742928306659,25.5,144.91,144.78,37.96906125]
[1742928306859,25.5,144.91,144.77,25.52]
[1742928307365,6.9041,144.83,144.78,6.9059]
[1742928307662,6.9041,144.83,144.79,0.04513543]
[1742928307863,0.04543858,144.82,144.79,0.04513543]
[1742928308069,0.04543858,144.82,144.79,6.95063543]
[1742928308760,0.04543858,144.82,144.8,6.9051]
[1742928308965,0.04543858,144.82,144.79,0.04513543]
[1742928309161,6.9052,144.8,144.79,0.04513543]
[1742928310062,25.54543858,144.82,144.79,0.04513543]
[1742928310364,0.04543858,144.82,144.79,0.04513543]
[1742928310759,6.94973858,144.82,144.79,0.04513543]
[1742928310966,0.04543858,144.82,144.79,0.04513543]
[1742928311865,6.94973858,144.82,144.79,0.04513543]
[1742928312266,0.04543858,144.82,144.79,0.04513543]
[1742928312967,6.9051,144.81,144.79,0.04513543]
[1742928313564,0.04543858,144.82,144.79,0.04513543]
[1742928313759,6.9052,144.8,144.79,0.04513543]
[1742928315462,6.9077,144.75,144.69,227.76]
[1742928315667,6.9077,144.75,144.7,25.46]
[1742928316565,25.46,144.82,144.7,25.46]
[1742928317161,0.04394905,144.77,144.75,0.05011736]
[1742928317364,25.5,144.78,144.75,0.05011736]
[1742928317560,0.04906714,144.77,144.69,6.9102]
[1742928318162,0.04906714,144.77,144.63,227.8]
[1742928318360,25.9479796,144.77,144.64,25.52]
[1742928318564,6.9124,144.65,144.64,25.52]
[1742928318967,25.52,144.71,144.64,25.52]
[1742928319167,0.04926438,144.66,144.65,6.912]
[1742928319368,25.54,144.74,144.66,0.05302844]
[1742928319569,6.909,144.72,144.67,6.9112]
[1742928319766,0.04855896,144.71,144.69,0.05317116]
[1742928321769,0.04855896,144.71,144.69,6.96347116]
[1742928322466,0.04855896,144.71,144.7,6.91]
[1742928324266,25.9479796,144.83,144.69,0.05317116]
[1742928324471,6.9064,144.78,144.68,25.54]
[1742928324872,6.9064,144.78,144.74,6.9078]
[1742928325367,6.95870409,144.77,144.75,0.04562186]
[1742928325770,6.9067,144.77,144.75,0.04562186]
[1742928325969,0.04648649,144.77,144.75,0.04562186]
[1742928326573,0.04648649,144.77,144.75,6.95312186]
[1742928327072,0.04648649,144.77,144.75,0.04562186]
[1742928328177,0.04648649,144.77,144.76,6.9071]
[1742928328573,0.04648649,144.77,144.76,32.4271]
[1742928329168,356.0,144.86,144.76,25.52]
[1742928329363,25.5,144.87,144.76,25.52]
[1742928330279,0.05319019,144.83,144.8,0.0448878]
[1742928330470,6.9047,144.81,144.8,0.0448878]
[1742928330870,25.57319019,144.83,144.75,6.9073]
[1742928331072,25.52,144.83,144.73,25.52]
[1742928332076,0.05083392,144.79,144.77,0.05307165]
[1742928332570,6.9062,144.78,144.77,0.05307165]
[1742928333172,0.05083392,144.79,144.77,0.05307165]
[1742928334480,0.05083392,144.79,144.77,6.95947165]
[1742928335178,6.95663392,144.79,144.77,0.05307165]
[1742928337180,6.95663392,144.79,144.77,6.95967165]
[1742928337383,0.05083392,144.79,144.77,25.51307165]
[1742928338572,0.05083392,144.79,144.77,0.05307165]
[1742928339176,6.95673392,144.79,144.77,0.05307165]
[1742928339584,0.05083392,144.79,144.77,0.05307165]
[1742928340282,6.9062,144.78,144.77,0.05307165]
[1742928340680,6.9062,144.78,144.77,7.165e-05]
[1742928342883,39.56263392,144.79,144.69,227.88]
[1742928343083,41.9224904,144.79,144.69,227.88]
[1742928343281,41.9224904,144.79,144.69,234.79]
[1742928343484,25.7,144.79,144.69,227.88]
[1742928343784,6.9077,144.75,144.69,227.88]
[1742928343981,6.9077,144.75,144.72,6.9087]
[1742928344181,0.04906184,144.73,144.72,6.9087]
[1742928344382,6.9066,144.77,144.72,25.74]
[1742928344584,25.74,144.81,144.72,25.74]
[1742928344882,6.9065,144.78,144.75,6.9073]
[1742928345484,0.04727446,144.78,144.77,6.9062]
[1742928345979,0.04727446,144.78,144.76,25.72]
[1742928346180,0.04727446,144.78,144.76,32.6269]
[1742928346478,0.04727446,144.78,144.76,25.72]
[1742928346678,0.04727446,144.78,144.77,6.9066]
[1742928346886,0.04727446,144.78,144.76,25.72]
[1742928347085,0.04727446,144.78,144.76,32.6269]
[1742928347383,0.04727446,144.78,144.76,25.72]
[1742928347585,0.04727446,144.78,144.77,6.9066]
[1742928348286,0.04727446,144.78,144.76,32.6269]
[1742928348984,0.04727446,144.78,144.77,6.9066]
[1742928349483,356.0,144.89,144.79,6.9053]
[1742928349690,25.66,144.88,144.79,6.9053]
[1742928350187,6.9048,144.81,144.79,6.9053]
[1742928350787,6.94950239,144.81,144.79,6.95044231]
[1742928351389,6.94950239,144.81,144.79,0.04514231]
[1742928351989,0.04470239,144.81,144.79,6.95074231]
[1742928352288,0.04470239,144.81,144.79,0.04514231]
[1742928352686,6.94970239,144.81,144.79,0.04514231]
[1742928353086,0.04470239,144.81,144.79,0.04514231]
[1742928353587,6.94960239,144.81,144.79,0.04514231]
[1742928354288,6.9052,144.8,144.79,0.04514231]
[1742928356083,0.04470239,144.81,144.79,0.04514231]
[1742928356388,0.04470239,144.81,144.79,6.95044231]
[1742928356693,0.04470239,144.81,144.8,25.56]
[1742928356886,0.04470239,144.81,144.8,32.4652]
[1742928357388,0.04470239,144.81,144.8,25.56]
[1742928358691,0.04470239,144.81,144.79,0.04514231]
[1742928359393,6.9052,144.8,144.79,0.04514231]
[1742928359994,6.94960239,144.81,144.79,0.04514231]
[1742928360693,0.04470239,144.81,144.79,0.04514231]
[1742928361993,6.9052,144.8,144.79,0.04514231]
[1742928362296,6.9052,144.8,144.71,25.46]
[1742928362297,25.48,144.8,144.71,25.46]
[1742928362493,25.48,144.8,144.71,32.3693]
[1742928362893,25.48,144.8,144.71,25.46]
[1742928363090,6.9085,144.74,144.71,32.3693]
[1742928363295,0.04826141,144.77,144.74,0.04676382]
[1742928363496,25.48,144.8,144.71,25.46]
[1742928363696,0.05143462,144.77,144.74,0.04981491]
[1742928364399,6.95833462,144.77,144.74,6.95761491]
[1742928364791,0.05143462,144.77,144.74,0.04981491]
[1742928365591,356.0,144.86,144.75,25.56]
[1742928365991,6.9056,144.8,144.75,25.56]
[1742928366197,131.3941784,144.87,144.75,25.56]
[1742928366495,117.5901784,144.87,144.75,25.56]
[1742928366702,101.367688,144.87,144.75,25.56]
[1742928366890,0.05040057,144.82,144.8,0.04634584]
[1742928367096,101.367688,144.87,144.8,0.04634584]
[1742928367097,6.9051,144.81,144.8,0.04634584]
[1742928367995,0.05062619,144.82,144.8,0.04634584]
[1742928368196,0.05062619,144.82,144.8,6.95114584]
[1742928368503,0.05062619,144.82,144.8,0.04634584]
[1742928369004,6.9047,144.81,144.8,0.04634584]
[1742928369699,0.05062619,144.82,144.8,0.04634584]
[1742928370302,0.05062619,144.82,144.81,6.9047]
[1742928370600,0.05062619,144.82,144.8,0.04634584]
[1742928371095,6.9047,144.81,144.8,0.04634584]
[1742928371501,6.9064,144.78,144.75,6.9073]
[1742928371800,25.6,144.78,144.65,37.96906125]
[1742928372009,25.6,144.78,144.66,25.6]
[1742928372307,6.909,144.72,144.68,6.9106]
[1742928372698,0.04784514,144.71,144.69,0.04646135]
[1742928373004,25.6,144.78,144.68,32.5106]
[1742928373200,25.6,144.78,144.69,0.04746362]
[1742928373401,0.04563056,144.74,144.68,25.6]
[1742928373605,6.9085,144.73,144.72,0.05318065]
[1742928378412,6.9085,144.73,144.72,8.065e-05]
[1742928379009,6.9,144.73,144.57,386.42595974]
[1742928379206,25.52,144.74,144.59,26.76953556]
[1742928379405,25.52,144.74,144.6,25.5]
[1742928380213,0.04517299,144.68,144.66,0.04815446]
[1742928380413,25.52,144.74,144.66,0.04815446]
[1742928380618,0.04996328,144.68,144.66,0.04815446]
[1742928380912,0.04954795,144.68,144.66,0.04815446]
[1742928381512,6.9114,144.67,144.66,0.04815446]
[1742928383314,6.96064795,144.68,144.66,0.04815446]
[1742928383907,0.04954795,144.68,144.66,0.04815446]
[1742928384109,0.04954795,144.68,144.66,25.50815446]
[1742928384810,0.04954795,144.68,144.67,6.9114]
[1742928385316,0.04954795,144.68,144.66,25.50815446]
[1742928385510,0.04954795,144.68,144.66,0.04815446]
[1742928386115,6.9114,144.67,144.66,0.04815446]
[1742928386614,0.04954795,144.68,144.66,6.95975446]
[1742928386812,0.04954795,144.68,144.66,0.04815446]
[1742928387914,0.04954795,144.68,144.67,6.9114]
[1742928391716,244.1224904,144.81,144.66,0.04815446]
[1742928392016,25.48,144.79,144.65,253.48]
[1742928392221,390.4967,144.84,144.66,13.8238]
[1742928392222,16.2224904,144.83,144.66,13.8238]
[1742928392523,25.5,144.82,144.65,253.48]
[1742928392723,25.5,144.82,144.75,6.9073]
[1742928393114,25.5,144.82,144.77,0.05159299]
[1742928393424,0.05262775,144.8,144.77,0.05159299]
[1742928393623,6.9062,144.78,144.77,0.05159299]
[1742928394025,6.9059,144.79,144.77,0.05159299]
[1742928394222,0.05262775,144.8,144.77,0.05159299]
[1742928394625,6.9061,144.79,144.77,0.05159299]
[1742928394924,0.05262775,144.8,144.77,0.05159299]
[1742928395123,6.9084,144.74,144.65,228.0]
[1742928395316,6.9084,144.74,144.72,6.9088]
[1742928395521,25.48,144.78,144.66,25.48]
[1742928396227,0.04723845,144.73,144.71,0.04528426]
[1742928396417,6.9059,144.79,144.77,6.9066]
[1742928396820,6.9545791,144.79,144.77,6.9066]
[1742928397126,6.9545791,144.79,144.77,0.04974948]
[1742928398326,6.9062,144.78,144.77,0.04974948]
[1742928399428,6.9077,144.75,144.7,25.48]
[1742928399625,25.48,144.82,144.7,25.48]
[1742928400023,25.48,144.82,144.71,6.9092]
[1742928400328,25.48,144.82,144.7,25.48]
[1742928400528,0.04479037,144.78,144.75,6.95946881]
[1742928400830,0.04479037,144.78,144.75,0.05236881]
[1742928402428,6.9071,144.76,144.75,0.05236881]
[1742928405437,6.9068,144.77,144.75,0.05236881]
[1742928406330,0.04479037,144.78,144.75,0.05236881]
[1742928406633,6.95129037,144.78,144.75,32.39966881]
[1742928407036,0.04479037,144.78,144.75,32.39966881]
[1742928407834,0.04479037,144.78,144.75,25.49236881]
[1742928408034,6.9071,144.76,144.75,0.05236881]
[1742928411841,6.9071,144.76,144.67,25.42]
[1742928411842,6.9,144.76,144.67,25.42]
[1742928412042,16.2224904,144.77,144.67,25.42]
[1742928412238,16.2224904,144.71,144.63,9.54310151]
[1742928412441,25.44,144.7,144.63,9.54310151]
[1742928412643,16.2224904,144.71,144.63,9.54310151]
[1742928412845,6.9128,144.64,144.61,6.914]
[1742928413341,6.96551568,144.64,144.61,6.914]
[1742928415046,6.96551568,144.64,144.6,6.9145]
[1742928415538,6.96551568,144.64,144.59,291.34906125]
[1742928415844,0.05271568,144.64,144.61,6.9142]
[1742928416245,0.05271568,144.64,144.62,6.9137]
[1742928416447,0.05271568,144.64,144.59,291.34906125]
[1742928416638,0.05271568,144.64,144.59,253.38]
[1742928417337,0.05271568,144.64,144.63,6.9133]
[1742928420250,0.05271568,144.64,144.59,253.38]
[1742928421351,0.05271568,144.64,144.63,6.9133]
[1742928421551,0.05271568,144.64,144.63,32.3333]
[1742928422352,25.42,144.74,144.63,25.42]
[1742928422554,26.01538746,144.79,144.63,25.42]
[1742928422754,6.9098,144.71,144.68,6.9108]
[1742928423053,26.01538746,144.79,144.63,25.42]
[1742928423054,25.42,144.74,144.63,25.42]
[1742928423348,6.9094,144.72,144.68,6.9106]
[1742928423550,0.05161812,144.7,144.68,6.9106]
[1742928423753,0.05161812,144.7,144.67,0.05261075]
[1742928424046,0.05161812,144.7,144.68,6.9109]
[1742928424252,0.05161812,144.7,144.67,0.05261075]
[1742928424654,0.05161812,144.7,144.68,6.9105]
[1742928425255,0.05161812,144.7,144.69,6.9104]
[1742928426854,0.05161812,144.7,144.67,25.45261075]
[1742928427359,6.9107,144.69,144.67,25.45261075]
[1742928428555,6.9107,144.69,144.67,32.36401075]
[1742928429053,6.9109,144.68,144.67,0.05261075]
[1742928430350,6.9108,144.69,144.67,0.05261075]
[1742928431656,25.43161812,144.7,144.67,0.05261075]
[1742928434558,0.05161812,144.7,144.67,0.05261075]
[1742928435059,6.9109,144.68,144.67,0.05261075]
[1742928435547,0.05161812,144.7,144.67,0.05261075]
[1742928435749,6.9107,144.69,144.67,0.05261075]
[1742928436250,0.05161812,144.7,144.67,0.05261075]
[1742928436454,6.9109,144.68,144.67,0.05261075]
[1742928437460,0.05161812,144.7,144.67,0.05261075]
[1742928439956,16.38225439,144.81,144.67,0.05261075]
[1742928440162,25.36,144.8,144.65,25.34]
[1742928440361,16.38225439,144.81,144.65,399.59090575]
[1742928440660,16.38225439,144.81,144.66,1.26890149]
[1742928440661,25.36,144.8,144.66,1.26890149]
[1742928441252,0.0448808,144.74,144.72,0.0455363]
[1742928441457,6.9058,144.79,144.73,25.36]
[1742928441760,0.04440788,144.78,144.73,25.36]
[1742928442064,0.04440788,144.78,144.77,6.9066]
[1742928442756,0.04440788,144.78,144.77,25.34]
[1742928444064,25.34,144.84,144.77,25.34]
[1742928444262,75.787688,144.89,144.77,25.34]
[1742928444468,6.9033,144.84,144.77,25.34]
[1742928444763,25.34,144.88,144.8,6.9048]
[1742928445164,6.9042,144.83,144.79,6.9054]
[1742928445563,6.9042,144.83,144.8,0.05127719]
[1742928445963,6.95183409,144.83,144.8,0.05127719]
[1742928446466,0.04763409,144.83,144.8,0.05127719]
[1742928446854,6.9044,144.82,144.8,0.05127719]
[1742928447568,6.9047,144.81,144.8,0.05127719]
[1742928447765,6.9047,144.81,144.77,25.34]
[1742928447766,25.32,144.82,144.74,25.32]
[1742928448866,0.04780148,144.79,144.77,0.04858175]
[1742928451665,0.04780148,144.79,144.78,25.34]
[1742928451962,25.34,144.86,144.78,25.34]
[1742928452468,6.9042,144.83,144.79,6.9052]
[1742928453163,6.95185202,144.82,144.8,0.05015398]
[1742928453562,0.04755202,144.82,144.8,0.05015398]
[1742928453867,0.04755202,144.82,144.8,6.95525398]
[1742928455475,0.04755202,144.82,144.81,6.9047]
[1742928458166,0.04755202,144.82,144.8,6.95525398]
[1742928461062,0.04755202,144.82,144.81,6.9047]
[1742928461474,0.04755202,144.82,144.8,6.95515398]
[1742928462076,0.04755202,144.82,144.81,6.9047]
[1742928462668,6.9031,144.85,144.82,6.9041]
[1742928462867,381.9597403,144.99,144.82,25.22]
[1742928463071,25.22,144.98,144.82,25.22]
[1742928463272,25.22,144.98,144.87,6.9018]
[1742928463578,25.22,144.98,144.86,25.22]
[1742928463876,0.04637046,144.94,144.91,0.05103801]
[1742928464068,25.32637046,144.94,144.91,0.05103801]
[1742928464671,6.8995,144.92,144.91,0.05103801]
[1742928465376,25.32637046,144.94,144.86,25.22]
[1742928465377,6.9019,144.87,144.86,25.22]
[1742928465577,41.48026487,144.94,144.83,25.24]
[1742928465878,6.9026,144.86,144.83,32.1435]
[1742928466178,6.9026,144.86,144.83,25.24]
[1742928466370,41.48026487,144.94,144.84,6.9033]
[1742928466570,0.04678004,144.86,144.84,6.9033]
[1742928466766,0.04553743,144.9,144.85,0.05173859]
[1742928466971,6.9022,144.87,144.84,6.9033]
[1742928467270,0.05040232,144.89,144.86,0.04613759]
[1742928467673,6.9019,144.87,144.86,0.04613759]
[1742928469976,6.9019,144.87,144.86,3.759e-05]
[1742928472178,6.9016,144.88,144.86,3.759e-05]
[1742928472382,0.05040232,144.89,144.86,3.759e-05]
[1742928473383,6.9019,144.87,144.86,3.759e-05]
[1742928475287,0.05040232,144.89,144.86,3.759e-05]
[1742928475686,0.05040232,144.89,144.87,6.9019]
[1742928475879,0.05040232,144.89,144.86,3.759e-05]
[1742928476277,0.05040232,144.89,144.86,6.90213759]
[1742928476587,0.05040232,144.89,144.86,3.759e-05]
[1742928476780,0.05040232,144.89,144.87,6.9018]
[1742928477384,6.95140232,144.89,144.86,6.90223759]
[1742928477887,0.05040232,144.89,144.86,3.759e-05]
[1742928478185,0.05040232,144.89,144.87,6.9018]
[1742928478392,0.05040232,144.89,144.86,3.759e-05]
[1742928479586,0.05040232,144.89,144.88,6.9014]
[1742928480983,0.05040232,144.89,144.86,3.759e-05]
[1742928482088,6.9019,144.87,144.86,3.759e-05]
[1742928485193,0.05040232,144.89,144.86,3.759e-05]
[1742928485194,25.29040232,144.89,144.86,3.759e-05]
[1742928485591,6.9014,144.88,144.86,3.759e-05]
[1742928485893,25.29040232,144.89,144.86,3.759e-05]
[1742928486190,0.05040232,144.89,144.86,3.759e-05]
[1742928486892,6.95140232,144.89,144.86,6.90193759]
[1742928487095,0.05040232,144.89,144.86,3.759e-05]
[1742928487396,0.05040232,144.89,144.88,6.9014]
[1742928489193,75.787688,144.96,144.88,25.22]
[1742928489388,6.8993,144.93,144.88,25.22]
[1742928489791,6.8993,144.93,144.89,6.9006]
[1742928489993,6.8993,144.93,144.88,25.22]
[1742928490388,0.05015566,144.92,144.91,6.9]
[1742928490595,6.8987,144.94,144.91,6.9]
[1742928490796,0.04520733,144.93,144.9,0.050133]
[1742928491199,6.94430733,144.93,144.9,6.950233]
[1742928491701,0.04520733,144.93,144.9,0.050133]
[1742928492000,0.04520733,144.93,144.92,6.8995]
[1742928492595,0.04520733,144.93,144.91,6.8997]
[1742928493193,0.04520733,144.93,144.92,6.8995]
[1742928494100,0.04520733,144.93,144.92,32.0795]
[1742928494699,0.04520733,144.93,144.92,25.18]
[1742928495202,0.04520733,144.93,144.92,32.0795]
[1742928497499,0.04520733,144.93,144.92,25.18]
[1742928498206,0.04520733,144.93,144.9,0.050133]
[1742928498505,25.22,144.92,144.9,0.050133]
[1742928498804,6.9,144.91,144.9,0.050133]
[1742928499406,6.8997,144.92,144.9,0.050133]
[1742928499607,0.04520733,144.93,144.9,0.050133]
[1742928500107,6.9,144.91,144.9,0.050133]
[1742928501602,6.8997,144.92,144.9,0.050133]
[1742928503710,6.9,144.91,144.9,0.050133]
[1742928504411,6.8997,144.92,144.9,0.050133]
[1742928505306,6.94430733,144.93,144.9,6.950533]
[1742928505506,0.04520733,144.93,144.9,0.050133]
[1742928505903,0.04520733,144.93,144.91,6.8998]
[1742928506113,0.04520733,144.93,144.9,0.050133]
[1742928506513,0.04520733,144.93,144.92,6.8995]
[1742928506809,0.04520733,144.93,144.91,25.16]
[1742928508511,0.04520733,144.93,144.92,6.8995]
[1742928509117,0.04520733,144.93,144.91,32.0597]
[1742928510717,0.04520733,144.93,144.92,6.8995]
[1742928513322,0.04520733,144.93,144.91,25.16]
[1742928513517,0.04520733,144.93,144.9,0.050133]
[1742928513730,0.04520733,144.93,144.85,25.16]
[1742928513920,6.9016,144.88,144.85,32.0626]
[1742928514329,25.16,144.91,144.84,25.16]
[1742928514826,0.05208775,144.89,144.86,0.04491465]
[1742928515026,55.17486487,144.97,144.84,25.16]
[1742928515225,0.04538007,144.89,144.86,0.04935596]
[1742928515526,227.64,144.98,144.86,0.04450714]
[1742928515731,25.24,144.97,144.84,25.16]
[1742928516032,6.8974,144.97,144.92,6.8991]
[1742928516731,0.04875315,144.96,144.93,0.04781943]
[1742928517333,0.04875315,144.96,144.93,6.94661943]
[1742928517533,0.04875315,144.96,144.93,0.04781943]
[1742928517833,6.94675315,144.96,144.93,0.04781943]
[1742928518333,0.04875315,144.96,144.93,0.04781943]
[1742928518934,0.04875315,144.96,144.93,6.94681943]
[1742928519335,6.8985,144.94,144.93,0.04781943]
[1742928520032,0.04875315,144.96,144.93,0.04781943]
[1742928520538,6.8984,144.95,144.93,0.04781943]
[1742928520730,0.04875315,144.96,144.93,0.04781943]
[1742928521231,0.04875315,144.96,144.93,6.94651943]